Workbook

Sheet Instructions

Sheet Basic Budget (Macro)
A1: Acme County School District | G1: TECHNOLOGY BUDGET Cumulative | Y1: Percentage of Proposed budget | Z1: =E40/C12 -> 1
Y2: Percentage of Current budget | Z2: =E40/C12 -> 1
B3: Solution | C3: Cost Per Rotation | D3: Rotation Schedule | E3: Cost Per Year
B4: Networking | C4: =Networking!$E$20 -> 134000 | D4: 5 | E4: =C4/D4 -> 26800 | G4: Current Budget per Year
B5: Firewall | C5: =Firewall!$E$20 -> 39500 | D5: 3 | E5: 13166.66667 | G5: Number of Students | H5: 1600
B6: Wireless | C6: =Wireless!$E$20 -> 81125 | D6: 3 | E6: 27041.66667 | G6: Number of Staff | H6: 200
B7: Server/Storage/VDI | C7: ='Server '!$E$20 -> 74750 | D7: 4 | E7: 18687.5 | G7: Current Budget | H7: 215000
B8: Security | C8: =CyberSecurity!$E$20 -> 105550 | D8: 3 | E8: 35183.33333 | G8: Cost Per User | H8: =H7/(H5+H6) -> 119.4444444
B9: Endpoints | C9: =Endpoint!$E$20 -> 325000 | D9: 5 | E9: 65000
B10: Environ Ctrl/UPS | C10: =C4*0.15 -> 20100 | D10: 5 | E10: 4020 | G10: Recommended Budget per Year
B11: Classroom Display | C11: ='Classroom Display'!E20 -> 29000 | D11: 10 | E11: 2900 | G11: Number of Students | H11: =H5 -> 1600
B12: Total | C12: =SUM(C4:C11) -> 809025 | E12: =SUM(E4:E11) -> 192799.1667 | G12: Number of Staff | H12: =H6 -> 200
G13: Proposed Budget | H13: =E12 -> 192799.1667
G14: Cost Per User | H14: =H13/(H11+H12) -> 107.1106481
B20: Pick a Solution → | D20: Standard | G20: Percentage of Overall Budget | J20: Percent of Budget Spent on Individual Solutions
B21: Product | C21: Quantity | D21: Unit Cost | E21: Total Cost
B22: Networking | E22: 134000
B23: Firewall | E23: 39500
B24: Wireless | E24: 81125
B25: Server/Storage/VDI | E25: 74750
B26: Security | E26: 105550
B27: Endpoints | E27: 325000 | G27: 45000
B28: Environ Ctrl/UPS | E28: 20100 | G28: 3375
B29: Classroom Display | E29: 29000 | G29: 25000
G30: 10000
G31: 5500
G32: 16675
D40: Total Cost | E40: =SUM(E22:E39) -> 809025

Sheet Proposed Budget
C2: Year | D2: =$I$2-5 -> 2016 | E2: =$I$2-4 -> 2017 | F2: =$I$2-3 -> 2018 | G2: =$I$2-2 -> 2019 | H2: =$I$2-1 -> 2020 | I2: =YEAR(TODAY()) -> 2021 | J2: =$I$2+1 -> 2022 | K2: =J2+1 -> 2023 | L2: =K2+1 -> 2024 | M2: 2025 | N2: 2026 | O2: 2027 | P2: 2028 | Q2: =P2+1 -> 2029 | R2: =Q2+1 -> 2030 | S2: Total 10 Years | T2: Average/Year
C3: Totals | D3: =SUM(D5:D15) -> 0 | E3: =SUM(E9:E15) -> 0 | F3: =SUM(F9:F15) -> 0 | G3: 0 | H3: 0 | I3: =SUM(I5:I15) -> 192799.1667 | J3: =SUM(J5:J15) -> 192799.1667 | K3: 192799.1667 | L3: 192799.1667 | M3: =SUM(M5:M15) -> 192799.1667 | N3: 192799.1667 | O3: 192799.1667 | P3: 192799.1667 | Q3: 192799.1667 | R3: =SUM(R5:R15) -> 192799.1667 | S3: =SUM(I3:R3) -> 1927991.667 | T3: =S3/10 -> 192799.1667
A4: Solution | B4: Year to Start | C4: Rotation
A5: ='Basic Budget (Macro)'!B4 -> Networking | B5: 2019 | C5: ='Basic Budget (Macro)'!D4 -> 5 | I5: ='Basic Budget (Macro)'!$E4 -> 26800 | J5: ='Basic Budget (Macro)'!$E4 -> 26800 | K5: ='Basic Budget (Macro)'!$E4 -> 26800 | L5: ='Basic Budget (Macro)'!$E4 -> 26800 | M5: ='Basic Budget (Macro)'!$E4 -> 26800 | N5: ='Basic Budget (Macro)'!$E4 -> 26800 | O5: ='Basic Budget (Macro)'!$E4 -> 26800 | P5: ='Basic Budget (Macro)'!$E4 -> 26800 | Q5: ='Basic Budget (Macro)'!$E4 -> 26800 | R5: ='Basic Budget (Macro)'!$E4 -> 26800 | S5: =SUM(I5:R5) -> 268000 | T5: =S5/10 -> 26800
A6: ='Basic Budget (Macro)'!B5 -> Firewall | B6: 2019 | C6: ='Basic Budget (Macro)'!D5 -> 3 | I6: ='Basic Budget (Macro)'!$E5 -> 13166.66667 | J6: ='Basic Budget (Macro)'!$E5 -> 13166.66667 | K6: ='Basic Budget (Macro)'!$E5 -> 13166.66667 | L6: ='Basic Budget (Macro)'!$E5 -> 13166.66667 | M6: ='Basic Budget (Macro)'!$E5 -> 13166.66667 | N6: ='Basic Budget (Macro)'!$E5 -> 13166.66667 | O6: ='Basic Budget (Macro)'!$E5 -> 13166.66667 | P6: ='Basic Budget (Macro)'!$E5 -> 13166.66667 | Q6: ='Basic Budget (Macro)'!$E5 -> 13166.66667 | R6: ='Basic Budget (Macro)'!$E5 -> 13166.66667 | S6: =SUM(I6:R6) -> 131666.6667 | T6: =S6/10 -> 13166.66667
A7: ='Basic Budget (Macro)'!B6 -> Wireless | B7: 2022 | C7: ='Basic Budget (Macro)'!D6 -> 3 | I7: ='Basic Budget (Macro)'!$E6 -> 27041.66667 | J7: ='Basic Budget (Macro)'!$E6 -> 27041.66667 | K7: ='Basic Budget (Macro)'!$E6 -> 27041.66667 | L7: ='Basic Budget (Macro)'!$E6 -> 27041.66667 | M7: ='Basic Budget (Macro)'!$E6 -> 27041.66667 | N7: ='Basic Budget (Macro)'!$E6 -> 27041.66667 | O7: ='Basic Budget (Macro)'!$E6 -> 27041.66667 | P7: ='Basic Budget (Macro)'!$E6 -> 27041.66667 | Q7: ='Basic Budget (Macro)'!$E6 -> 27041.66667 | R7: ='Basic Budget (Macro)'!$E6 -> 27041.66667 | S7: 270416.6667 | T7: 27041.66667
A8: ='Basic Budget (Macro)'!B7 -> Server/Storage/VDI | B8: 2021 | C8: ='Basic Budget (Macro)'!D7 -> 4 | I8: ='Basic Budget (Macro)'!$E7 -> 18687.5 | J8: ='Basic Budget (Macro)'!$E7 -> 18687.5 | K8: ='Basic Budget (Macro)'!$E7 -> 18687.5 | L8: ='Basic Budget (Macro)'!$E7 -> 18687.5 | M8: ='Basic Budget (Macro)'!$E7 -> 18687.5 | N8: ='Basic Budget (Macro)'!$E7 -> 18687.5 | O8: ='Basic Budget (Macro)'!$E7 -> 18687.5 | P8: ='Basic Budget (Macro)'!$E7 -> 18687.5 | Q8: ='Basic Budget (Macro)'!$E7 -> 18687.5 | R8: ='Basic Budget (Macro)'!$E7 -> 18687.5 | S8: 186875 | T8: 18687.5
A9: ='Basic Budget (Macro)'!B8 -> Security | B9: 2019 | C9: ='Basic Budget (Macro)'!D8 -> 3 | I9: ='Basic Budget (Macro)'!$E8 -> 35183.33333 | J9: ='Basic Budget (Macro)'!$E8 -> 35183.33333 | K9: ='Basic Budget (Macro)'!$E8 -> 35183.33333 | L9: ='Basic Budget (Macro)'!$E8 -> 35183.33333 | M9: ='Basic Budget (Macro)'!$E8 -> 35183.33333 | N9: ='Basic Budget (Macro)'!$E8 -> 35183.33333 | O9: ='Basic Budget (Macro)'!$E8 -> 35183.33333 | P9: ='Basic Budget (Macro)'!$E8 -> 35183.33333 | Q9: ='Basic Budget (Macro)'!$E8 -> 35183.33333 | R9: ='Basic Budget (Macro)'!$E8 -> 35183.33333 | S9: 351833.3333 | T9: 35183.33333
A10: ='Basic Budget (Macro)'!B9 -> Endpoints | B10: 2023 | C10: ='Basic Budget (Macro)'!D9 -> 5 | I10: ='Basic Budget (Macro)'!$E9 -> 65000 | J10: ='Basic Budget (Macro)'!$E9 -> 65000 | K10: ='Basic Budget (Macro)'!$E9 -> 65000 | L10: ='Basic Budget (Macro)'!$E9 -> 65000 | M10: ='Basic Budget (Macro)'!$E9 -> 65000 | N10: ='Basic Budget (Macro)'!$E9 -> 65000 | O10: ='Basic Budget (Macro)'!$E9 -> 65000 | P10: ='Basic Budget (Macro)'!$E9 -> 65000 | Q10: ='Basic Budget (Macro)'!$E9 -> 65000 | R10: ='Basic Budget (Macro)'!$E9 -> 65000 | S10: 650000 | T10: 65000
A11: ='Basic Budget (Macro)'!B10 -> Environ Ctrl/UPS | B11: 2020 | C11: ='Basic Budget (Macro)'!D10 -> 5 | I11: ='Basic Budget (Macro)'!$E10 -> 4020 | J11: ='Basic Budget (Macro)'!$E10 -> 4020 | K11: ='Basic Budget (Macro)'!$E10 -> 4020 | L11: ='Basic Budget (Macro)'!$E10 -> 4020 | M11: ='Basic Budget (Macro)'!$E10 -> 4020 | N11: ='Basic Budget (Macro)'!$E10 -> 4020 | O11: ='Basic Budget (Macro)'!$E10 -> 4020 | P11: ='Basic Budget (Macro)'!$E10 -> 4020 | Q11: ='Basic Budget (Macro)'!$E10 -> 4020 | R11: ='Basic Budget (Macro)'!$E10 -> 4020 | S11: 40200 | T11: 4020
A12: ='Basic Budget (Macro)'!B11 -> Classroom Display | B12: 2020 | C12: ='Basic Budget (Macro)'!D11 -> 10 | I12: ='Basic Budget (Macro)'!$E11 -> 2900 | J12: ='Basic Budget (Macro)'!$E11 -> 2900 | K12: ='Basic Budget (Macro)'!$E11 -> 2900 | L12: ='Basic Budget (Macro)'!$E11 -> 2900 | M12: ='Basic Budget (Macro)'!$E11 -> 2900 | N12: ='Basic Budget (Macro)'!$E11 -> 2900 | O12: ='Basic Budget (Macro)'!$E11 -> 2900 | P12: ='Basic Budget (Macro)'!$E11 -> 2900 | Q12: ='Basic Budget (Macro)'!$E11 -> 2900 | R12: ='Basic Budget (Macro)'!$E11 -> 2900 | S12: 29000 | T12: 2900
S13: 0 | T13: 0
S14: 0 | T14: 0
S15: 0 | T15: 0
A16: Product Category | B16: Product | C16: Total Cost
A17: Wireless | B17: APX 740 | C17: 11250 | I17: =IFERROR($C17/VLOOKUP($A17,$A$5:$C$12,3,FALSE),"") -> 3750 | J17: =IFERROR($C17/VLOOKUP($A17,$A$5:$C$12,3,FALSE),"") -> 3750 | K17: 3750 | L17: 3750 | M17: 3750 | N17: 3750 | O17: 3750 | P17: 3750 | Q17: 3750 | R17: 3750
A18: Wireless | B18: APX 320 Solution | C18: 35000 | I18: =IFERROR($C18/VLOOKUP($A18,$A$5:$C$12,3,FALSE),"") -> 11666.66667 | J18: 11666.66667 | K18: 11666.66667 | L18: 11666.66667 | M18: 11666.66667 | N18: 11666.66667 | O18: 11666.66667 | P18: 11666.66667 | Q18: 11666.66667 | R18: 11666.66667
A19: Wireless | B19: Outdoor AP | C19: 7500 | I19: 2500 | J19: 2500 | K19: 2500 | L19: 2500 | M19: 2500 | N19: 2500 | O19: 2500 | P19: 2500 | Q19: 2500 | R19: 2500
A20: Wireless | B20: Cloudpath | C20: 18000 | I20: 6000 | J20: 6000 | K20: 6000 | L20: 6000 | M20: 6000 | N20: 6000 | O20: 6000 | P20: 6000 | Q20: 6000 | R20: 6000
A21: Wireless | B21: Install/Config | C21: 9375 | I21: 3125 | J21: 3125 | K21: 3125 | L21: 3125 | M21: 3125 | N21: 3125 | O21: 3125 | P21: 3125 | Q21: 3125 | R21: 3125
A22: Server/Storage/VDI | B22: File Servers | C22: 5000 | I22: 1250 | J22: 1250 | K22: 1250 | L22: 1250 | M22: 1250 | N22: 1250 | O22: 1250 | P22: 1250 | Q22: 1250 | R22: 1250
A23: Server/Storage/VDI | B23: Application Servers | C23: 30000 | I23: 7500 | J23: 7500 | K23: 7500 | L23: 7500 | M23: 7500 | N23: 7500 | O23: 7500 | P23: 7500 | Q23: 7500 | R23: 7500
A24: Server/Storage/VDI | B24: Backup Servers | C24: 10000 | I24: 2500 | J24: 2500 | K24: 2500 | L24: 2500 | M24: 2500 | N24: 2500 | O24: 2500 | P24: 2500 | Q24: 2500 | R24: 2500
A25: Server/Storage/VDI | B25: Storage Servers | C25: 20000 | I25: 5000 | J25: 5000 | K25: 5000 | L25: 5000 | M25: 5000 | N25: 5000 | O25: 5000 | P25: 5000 | Q25: 5000 | R25: 5000
A26: Server/Storage/VDI | B26: Install/Config | C26: 9750 | I26: 2437.5 | J26: 2437.5 | K26: 2437.5 | L26: 2437.5 | M26: 2437.5 | N26: 2437.5 | O26: 2437.5 | P26: 2437.5 | Q26: 2437.5 | R26: 2437.5
A27: Security | B27: Enpoint Protection | C27: 45000 | I27: 15000 | J27: 15000 | K27: 15000 | L27: 15000 | M27: 15000 | N27: 15000 | O27: 15000 | P27: 15000 | Q27: 15000 | R27: 15000
A28: Security | B28: Server Protection | C28: 3375 | I28: 1125 | J28: 1125 | K28: 1125 | L28: 1125 | M28: 1125 | N28: 1125 | O28: 1125 | P28: 1125 | Q28: 1125 | R28: 1125
A29: Security | B29: Email Protection | C29: 25000 | I29: 8333.333333 | J29: 8333.333333 | K29: 8333.333333 | L29: 8333.333333 | M29: 8333.333333 | N29: 8333.333333 | O29: 8333.333333 | P29: 8333.333333 | Q29: 8333.333333 | R29: 8333.333333
A30: Security | B30: Phish Threat | C30: 10000 | I30: 3333.333333 | J30: 3333.333333 | K30: 3333.333333 | L30: 3333.333333 | M30: 3333.333333 | N30: 3333.333333 | O30: 3333.333333 | P30: 3333.333333 | Q30: 3333.333333 | R30: 3333.333333
A31: Security | B31: Securly | C31: 5500 | I31: 1833.333333 | J31: 1833.333333 | K31: 1833.333333 | L31: 1833.333333 | M31: 1833.333333 | N31: 1833.333333 | O31: 1833.333333 | P31: 1833.333333 | Q31: 1833.333333 | R31: 1833.333333
A32: Security | B32: Install/Config | C32: 16675 | I32: 5558.333333 | J32: 5558.333333 | K32: 5558.333333 | L32: 5558.333333 | M32: 5558.333333 | N32: 5558.333333 | O32: 5558.333333 | P32: 5558.333333 | Q32: 5558.333333 | R32: 5558.333333
A33: Networking | B33: Edge (1GB Option) | C33: 56000 | I33: 11200 | J33: 11200 | K33: 11200 | L33: 11200 | M33: 11200 | N33: 11200 | O33: 11200 | P33: 11200 | Q33: 11200 | R33: 11200
A34: Networking | B34: Core (1 GB Option) | C34: 60000 | I34: 12000 | J34: 12000 | K34: 12000 | L34: 12000 | M34: 12000 | N34: 12000 | O34: 12000 | P34: 12000 | Q34: 12000 | R34: 12000
A35: Networking | B35: Install/Config (1 GB Option) | C35: 18000 | I35: 3600 | J35: 3600 | K35: 3600 | L35: 3600 | M35: 3600 | N35: 3600 | O35: 3600 | P35: 3600 | Q35: 3600 | R35: 3600
A36: Firewall | B36: XG 550 | C36: 35000 | I36: 11666.66667 | J36: 11666.66667 | K36: 11666.66667 | L36: 11666.66667 | M36: 11666.66667 | N36: 11666.66667 | O36: 11666.66667 | P36: 11666.66667 | Q36: 11666.66667 | R36: 11666.66667
A37: Firewall | B37: Install/Config | C37: 4500 | I37: 1500 | J37: 1500 | K37: 1500 | L37: 1500 | M37: 1500 | N37: 1500 | O37: 1500 | P37: 1500 | Q37: 1500 | R37: 1500
A38: Endpoints | B38: Chromebooks | C38: 250000 | I38: 50000 | J38: 50000 | K38: 50000 | L38: 50000 | M38: 50000 | N38: 50000 | O38: 50000 | P38: 50000 | Q38: 50000 | R38: 50000
A39: Endpoints | B39: Andriod Tablets | C39: 75000 | I39: 15000 | J39: 15000 | K39: 15000 | L39: 15000 | M39: 15000 | N39: 15000 | O39: 15000 | P39: 15000 | Q39: 15000 | R39: 15000
A40: Endpoints | B40: iPad Minis | C40: 0 | I40: 0 | J40: 0 | K40: 0 | L40: 0 | M40: 0 | N40: 0 | O40: 0 | P40: 0 | Q40: 0 | R40: 0
A41: Endpoints | B41: iPad Air *AM | C41: 0 | I41: 0 | J41: 0 | K41: 0 | L41: 0 | M41: 0 | N41: 0 | O41: 0 | P41: 0 | Q41: 0 | R41: 0
A42: Endpoints | B42: Windows Laptops | C42: 0 | I42: 0 | J42: 0 | K42: 0 | L42: 0 | M42: 0 | N42: 0 | O42: 0 | P42: 0 | Q42: 0 | R42: 0
A43: Endpoints | B43: MacBook Pro | C43: 0 | I43: 0 | J43: 0 | K43: 0 | L43: 0 | M43: 0 | N43: 0 | O43: 0 | P43: 0 | Q43: 0 | R43: 0
A44: Endpoints | B44: Thin Clients | C44: 0 | I44: 0 | J44: 0 | K44: 0 | L44: 0 | M44: 0 | N44: 0 | O44: 0 | P44: 0 | Q44: 0 | R44: 0
A45: Endpoints | B45: VDI | C45: 0 | I45: 0 | J45: 0 | K45: 0 | L45: 0 | M45: 0 | N45: 0 | O45: 0 | P45: 0 | Q45: 0 | R45: 0
A46: Endpoints | B46: iMacs | C46: 0 | I46: 0 | J46: 0 | K46: 0 | L46: 0 | M46: 0 | N46: 0 | O46: 0 | P46: 0 | Q46: 0 | R46: 0
A47: Endpoints | B47: Windows Desktop | C47: 0 | I47: 0 | J47: 0 | K47: 0 | L47: 0 | M47: 0 | N47: 0 | O47: 0 | P47: 0 | Q47: 0 | R47: 0
A48: Classroom Display | B48: Thing 1 | C48: 9000 | I48: 900 | J48: 900 | K48: 900 | L48: 900 | M48: 900 | N48: 900 | O48: 900 | P48: 900 | Q48: 900 | R48: 900
A49: Classroom Display | B49: Thing 2 | C49: 10000 | I49: 1000 | J49: 1000 | K49: 1000 | L49: 1000 | M49: 1000 | N49: 1000 | O49: 1000 | P49: 1000 | Q49: 1000 | R49: 1000
A50: Classroom Display | B50: Thing 3 | C50: 10000 | I50: =IFERROR($C50/VLOOKUP($A50,$A$5:$C$12,3,FALSE),"") -> 1000 | J50: 1000 | K50: 1000 | L50: 1000 | M50: 1000 | N50: 1000 | O50: 1000 | P50: 1000 | Q50: 1000 | R50: 1000
A51: 0 | B51: 0 | C51: 0
A52: 0 | B52: 0 | C52: 0
A53: 0 | B53: 0 | C53: 0
A54: 0 | B54: 0 | C54: 0
A55: 0 | B55: 0 | C55: 0
A56: 0 | B56: 0 | C56: 0
A57: 0 | B57: 0 | C57: 0
A58: 0 | B58: 0 | C58: 0
A59: 0 | B59: 0 | C59: 0
A60: 0 | B60: 0 | C60: 0
A61: 0 | B61: 0 | C61: 0
A62: 0 | B62: 0 | C62: 0
A63: 0 | B63: 0 | C63: 0
A64: 0 | B64: 0 | C64: 0
A65: 0 | B65: 0 | C65: 0
A66: 0 | B66: 0 | C66: 0
A67: 0 | B67: 0 | C67: 0
A68: 0 | B68: 0 | C68: 0
A69: 0 | B69: 0 | C69: 0
A70: 0 | B70: 0 | C70: 0
A71: 0 | B71: 0 | C71: 0
A72: 0 | B72: 0 | C72: 0
A73: 0 | B73: 0 | C73: 0
A74: 0 | B74: 0 | C74: 0
A75: 0 | B75: 0 | C75: 0 | N75: =IFERROR($C75/VLOOKUP($A75,$A$5:$C$12,3,FALSE),"") -> 
A76: 0 | B76: 0 | C76: 0 | I76: =IFERROR($C76/VLOOKUP($A76,$A$5:$C$12,3,FALSE),"") -> 
A77: 0 | B77: 0 | C77: 0
A78: 0 | B78: 0 | C78: 0
A79: 0 | B79: 0 | C79: 0
A80: 0 | B80: 0 | C80: 0
A81: 0 | B81: 0 | C81: 0
A82: 0 | B82: 0 | C82: 0
A83: 0 | B83: 0 | C83: 0
A84: 0 | B84: 0 | C84: 0
A85: 0 | B85: 0 | C85: 0
A86: 0 | B86: 0 | C86: 0
A87: 0 | B87: 0 | C87: 0
A88: 0 | B88: 0 | C88: 0
A89: 0 | B89: 0 | C89: 0
A90: 0 | B90: 0 | C90: 0
A91: 0 | B91: 0 | C91: 0
A92: 0 | B92: 0 | C92: 0
A93: 0 | B93: 0 | C93: 0
A94: 0 | B94: 0 | C94: 0
A95: 0 | B95: 0 | C95: 0
A96: 0 | B96: 0 | C96: 0
A97: 0 | B97: 0 | C97: 0
A98: 0 | B98: 0 | C98: 0
A99: 0 | B99: 0 | C99: 0
A100: 0 | B100: 0 | C100: 0
A101: 0 | B101: 0 | C101: 0
A102: 0 | B102: 0 | C102: 0
A103: 0 | B103: 0 | C103: 0 | Q103: =IFERROR($C103/VLOOKUP($A103,$A$5:$C$12,3,FALSE),"") -> 
A104: 0 | B104: 0 | C104: 0
A105: 0 | B105: 0 | C105: 0
A106: 0 | B106: 0 | C106: 0
A107: 0 | B107: 0 | C107: 0
A108: 0 | B108: 0 | C108: 0
A109: 0 | B109: 0 | C109: 0
A110: 0 | B110: 0 | C110: 0
A111: 0 | B111: 0 | C111: 0
A112: 0 | B112: 0 | C112: 0
A113: 0 | B113: 0 | C113: 0
A114: 0 | B114: 0 | C114: 0
A115: 0 | B115: 0 | C115: 0
A116: 0 | B116: 0 | C116: 0
A117: 0 | B117: 0 | C117: 0
A118: 0 | B118: 0 | C118: 0
A119: 0 | B119: 0 | C119: 0
A120: 0 | B120: 0 | C120: 0
A121: 0 | B121: 0 | C121: 0
A122: 0 | B122: 0 | C122: 0
A123: 0 | B123: 0 | C123: 0
A124: 0 | B124: 0 | C124: 0
A125: 0 | B125: 0 | C125: 0
A126: 0 | B126: 0 | C126: 0
A127: 0 | B127: 0 | C127: 0
A128: 0 | B128: 0 | C128: 0
A129: 0 | B129: 0 | C129: 0
A130: 0 | B130: 0 | C130: 0
A131: 0 | B131: 0 | C131: 0
A132: 0 | B132: 0 | C132: 0 | K132: =IFERROR($C132/VLOOKUP($A132,$A$5:$C$12,3,FALSE),"") -> 
A133: 0 | B133: 0 | C133: 0
A134: 0 | B134: 0 | C134: 0
A135: 0 | B135: 0 | C135: 0
A136: 0 | B136: 0 | C136: 0
A137: 0 | B137: 0 | C137: 0
A138: 0 | B138: 0 | C138: 0
A139: 0 | B139: 0 | C139: 0
A140: 0 | B140: 0 | C140: 0 | I140: =IFERROR($C140/VLOOKUP($A140,$A$5:$C$12,3,FALSE),"") -> 
A141: 0 | B141: 0 | C141: 0

Sheet Networking
A1: Solution | B1: Product | C1: Quantity | D1: Unit Cost | E1: Total Cost | G1: Survey Results
A2: Networking | B2: Edge (1GB Option) | C2: 14 | D2: 4000 | E2: =C2*D2 -> 56000 | G2: Networking | H2: Answers
A3: Networking | B3: Core (1 GB Option) | C3: 4 | D3: 15000 | E3: =C3*D3 -> 60000 | G3: # of Ports
A4: Networking | B4: Install/Config (1 GB Option) | C4: =SUM(C2:C3) -> 18 | D4: 1000 | E4: =C4*D4 -> 18000 | G4: # of IDFs
E5: =C5*D5 -> 0 | G5: # of MDFs
E6: =C6*D6 -> 0
E7: =C7*D7 -> 0
E8: 0
E9: 0
E10: 0
E11: 0
E12: 0
E13: 0
E14: 0
E15: 0
E16: 0
E17: 0
E18: 0
E19: 0
B20: Total | E20: =SUBTOTAL(109,Networking!$E$2:$E$19) -> 134000

Sheet Firewall
A1: Solution | B1: Product | C1: Quantity | D1: Unit Cost | E1: Total Cost | G1: Survey Results
A2: Firewall | B2: XG 550 | C2: 1 | D2: 35000 | E2: =C2*D2 -> 35000 | G2: Firewall | H2: Answers
A3: Firewall | B3: Install/Config | C3: =SUM(C2:C2) -> 1 | D3: 4500 | E3: =C3*D3 -> 4500 | G3: Current Firewall Solution
E4: =C4*D4 -> 0 | G4: Config Backup?
E5: 0 | G5: When does Licensing Expire?
E6: 0 | G6: # of Users
E7: 0 | G7: Bandwidth
E8: 0 | G8: # of Locations
E9: 0
E10: 0
E11: 0
E12: 0
E13: 0
E14: 0
E15: 0
E16: 0
E17: 0
E18: 0
E19: 0
B20: Total | E20: =SUBTOTAL(109,Firewall!$E$2:$E$19) -> 39500

Sheet Wireless
A1: Solution | B1: Product | C1: Quantity | D1: Unit Cost | E1: Total Cost | G1: Survey Results
A2: Wireless | B2: APX 740 | C2: 15 | D2: 750 | E2: =C2*D2 -> 11250 | G2: Wireless | H2: Answers
A3: Wireless | B3: APX 320 Solution | C3: 100 | D3: 350 | E3: =C3*D3 -> 35000 | G3: Current LAN Solution
A4: Wireless | B4: Outdoor AP | C4: 10 | D4: 750 | E4: =C4*D4 -> 7500 | G4: What Model of Swith Using
A5: Wireless | B5: Cloudpath | C5: 1800 | D5: 10 | E5: =C5*D5 -> 18000 | G5: Do you have Backup Config
A6: Wireless | B6: Install/Config | C6: =SUM(C2:C4) -> 125 | D6: 75 | E6: =C6*D6 -> 9375 | G6: Do you have VLAN Segmentation
E7: =C7*D7 -> 0 | G7: Do you have Network Security Policies
E8: 0 | G8: Do you use VPN Encryption
E9: 0 | G9: Do you use User Right Management
E10: 0 | G10: Current Email Platform
E11: 0 | G11: # of Classrooms
E12: 0 | G12: # of Common Areas
E13: =C13*D13 -> 0 | G13: # of Outdoor Locations
E14: 0 | G14: # of Cloudpath Users
E15: 0
E16: 0
E17: 0
E18: 0
E19: 0
B20: Total | E20: =SUBTOTAL(109,Wireless!$E$2:$E$19) -> 81125

Sheet Server
A1: Solution | B1: Product | C1: Quantity | D1: Unit Cost | E1: Total Cost | G1: Survey Results
A2: Server/Storage/VDI | B2: File Servers | C2: 1 | D2: 5000 | E2: =C2*D2 -> 5000 | G2: Servers | H2: Answers
A3: Server/Storage/VDI | B3: Application Servers | C3: 6 | D3: 5000 | E3: =C3*D3 -> 30000 | G3: # of File Servers
A4: Server/Storage/VDI | B4: Backup Servers | C4: 2 | D4: 5000 | E4: =C4*D4 -> 10000 | G4: # of Application Servers
A5: Server/Storage/VDI | B5: Storage Servers | C5: 4 | D5: 5000 | E5: =C5*D5 -> 20000 | G5: # of Backup Servers
A6: Server/Storage/VDI | B6: Install/Config | C6: =SUM(C2:C5) -> 13 | D6: 750 | E6: =C6*D6 -> 9750 | G6: # of Storage Servers
E7: =C7*D7 -> 0
E8: 0
E9: 0
E10: 0
E11: 0
E12: 0
E13: 0
E14: 0
E15: 0
E16: 0
E17: 0
E18: 0
E19: 0
B20: Total | E20: =SUBTOTAL(109,'Server '!$E$2:$E$19) -> 74750

Sheet CyberSecurity
A1: Solution | B1: Product | C1: Quantity | D1: Unit Cost | E1: Total Cost | G1: Survey Results
A2: Security | B2: Enpoint Protection | C2: 1800 | D2: 25 | E2: =C2*D2 -> 45000 | G2: Cyber Security | H2: Answers
A3: Security | B3: Server Protection | C3: 15 | D3: 225 | E3: =C3*D3 -> 3375 | G3: Current Endpoint Solution
A4: Security | B4: Email Protection | C4: 1000 | D4: 25 | E4: 25000 | G4: Version of Endpoint (i.e. advanced)
A5: Security | B5: Phish Threat | C5: 200 | D5: 50 | E5: 10000 | G5: When does Endpoint Licensing Expire
A6: Security | B6: Securly | C6: 1100 | D6: 5 | E6: 5500 | G6: Current Server Protection Solution
A7: Security | B7: Install/Config | C7: 1 | D7: =SUM(E2:E5)*0.2 -> 16675 | E7: 16675 | G7: When does Server Licensing Expire
E8: 0 | G8: Current Email Protection Solution
E9: 0 | G9: When does Email Licensing Expire
E10: 0 | G10: Current Mobile Protection Solution
E11: 0 | G11: When does Mobile Protection Expire
E12: 0 | G12: Current Encryption Solution
E13: 0 | G13: When does Encryption Licensing Expire
E14: 0 | G14: Do you currently provide cybersecurity training
E15: 0 | G15: Do you have Acceptable Use Policy
E16: 0 | G16: Do you provide Password Management
E17: 0 | G17: Do you facilitate phishing simulation campaigns
E18: 0 | G18: # of Staff
E19: 0 | G19: # of Students
B20: Total | E20: =SUBTOTAL(109,CyberSecurity!$E$2:$E$19) -> 105550 | G20: # of Mailboxes
G21: # of Servers
G22: # of Workstations

Sheet Endpoint
A1: Solution | B1: Product | C1: Quantity | D1: Unit Cost | E1: Total Cost | G1: Survey Results
A2: Endpoints | B2: Chromebooks | C2: 1000 | D2: 250 | E2: =C2*D2 -> 250000 | G2: Endpoint | H2: Answers
A3: Endpoints | B3: Andriod Tablets | C3: 150 | D3: 500 | E3: 75000 | G3: Chromebooks
A4: Endpoints | B4: iPad Minis | C4: 0 | D4: 250 | E4: 0 | G4: Andriod Tablets
A5: Endpoints | B5: iPad Air *AM | C5: 0 | D5: 500 | E5: 0 | G5: iPad Minis
A6: Endpoints | B6: Windows Laptops | C6: 0 | D6: 800 | E6: 0 | G6: iPad Air *AM
A7: Endpoints | B7: MacBook Pro | C7: 0 | D7: 1300 | E7: 0 | G7: Windows Laptops
A8: Endpoints | B8: Thin Clients | C8: 0 | D8: 450 | E8: 0 | G8: MacBook Pro
A9: Endpoints | B9: VDI | C9: 0 | D9: 750 | E9: 0 | G9: Thin Clients
A10: Endpoints | B10: iMacs | C10: 0 | D10: 1300 | E10: 0 | G10: VDI
A11: Endpoints | B11: Windows Desktop | C11: 0 | D11: 1000 | E11: 0 | G11: iMacs
E12: 0 | G12: Windows Desktop
E13: 0
E14: 0
E15: 0
E16: 0
E17: 0
E18: 0
E19: 0
B20: Total | E20: =SUBTOTAL(109,Endpoint!$E$2:$E$19) -> 325000

Sheet Classroom Display
A1: Solution | B1: Product | C1: Quantity | D1: Unit Cost | E1: Total Cost | G1: Survey Results
A2: Classroom Display | B2: Thing 1 | C2: 100 | D2: 90 | E2: =C2*D2 -> 9000 | G2: Current Classroom Solutions | H2: Answers
A3: Classroom Display | B3: Thing 2 | C3: 10 | D3: 1000 | E3: =C3*D3 -> 10000
A4: Classroom Display | B4: Thing 3 | C4: 10 | D4: 1000 | E4: 10000
E5: 0
E6: 0
E7: 0
E8: 0
E9: 0
E10: 0
E11: 0
E12: 0
E13: 0
E14: 0
E15: 0
E16: 0
E17: 0
E18: 0
E19: 0
B20: Total | E20: =SUBTOTAL(109,$E$2:$E$19) -> 29000

Sheet Calculation
A1: Solution | B1: Product | C1: Quantity | D1: Unit Cost | E1: Total Cost | H1: I17 | K1: I5
A2: =Networking!$A2 -> Networking | B2: =Networking!$B2 -> Edge (1GB Option) | C2: =Networking!$C2 -> 14 | D2: =Networking!$D2 -> 4000 | E2: =Networking!$E2 -> 56000 | H2: =IFERROR($C2/VLOOKUP($A2,$A$5:$C$12,3,FALSE),"") ->  | K2: =IF($B$5=#REF!,Networking!$E$20,"") -> 
A3: =Networking!$A3 -> Networking | B3: =Networking!$B3 -> Core (1 GB Option) | C3: =Networking!$C3 -> 4 | D3: =Networking!$D3 -> 15000 | E3: =Networking!$E3 -> 60000 | K3: =IF($B$6=#REF!,Firewall!$E$20,"") -> 
A4: =Networking!$A4 -> Networking | B4: =Networking!$B4 -> Install/Config (1 GB Option) | C4: =Networking!$C4 -> 18 | D4: =Networking!$D4 -> 1000 | E4: =Networking!$E4 -> 18000 | K4: =IF($B$7=#REF!,Wireless!$E$20,"") -> 
A5: =Networking!$A5 -> 0 | B5: =Networking!$B5 -> 0 | C5: =Networking!$C5 -> 0 | D5: =Networking!$D5 -> 0 | E5: =Networking!$E5 -> 0 | K5: =IF($B$8=#REF!,'Server '!$E$20,"") -> 
A6: =Networking!$A6 -> 0 | B6: =Networking!$B6 -> 0 | C6: =Networking!$C6 -> 0 | D6: =Networking!$D6 -> 0 | E6: =Networking!$E6 -> 0 | K6: =IF($B$9=#REF!,CyberSecurity!$E$20,"") -> 
A7: =Networking!$A7 -> 0 | B7: =Networking!$B7 -> 0 | C7: =Networking!$C7 -> 0 | D7: =Networking!$D7 -> 0 | E7: =Networking!$E7 -> 0 | K7: =IF($B$10=#REF!,Endpoint!$E$20,"") -> 
A8: =Networking!$A8 -> 0 | B8: =Networking!$B8 -> 0 | C8: =Networking!$C8 -> 0 | D8: =Networking!$D8 -> 0 | E8: =Networking!$E8 -> 0 | K8: =IF($B$11=#REF!,'Basic Budget (Macro)'!$C$10,"") -> 
A9: =Networking!$A9 -> 0 | B9: =Networking!$B9 -> 0 | C9: =Networking!$C9 -> 0 | D9: =Networking!$D9 -> 0 | E9: =Networking!$E9 -> 0 | K9: =IF($B$12=#REF!,'Basic Budget (Macro)'!$C$11,"") -> 
A10: =Networking!$A10 -> 0 | B10: =Networking!$B10 -> 0 | C10: =Networking!$C10 -> 0 | D10: =Networking!$D10 -> 0 | E10: =Networking!$E10 -> 0 | K10: I17
A11: =Networking!$A11 -> 0 | B11: =Networking!$B11 -> 0 | C11: =Networking!$C11 -> 0 | D11: =Networking!$D11 -> 0 | E11: =Networking!$E11 -> 0 | K11: =IF(IFERROR(VLOOKUP($A11,$A$5:$B$15,2,0),"not found")=K$2,$C11,"") -> 
A12: =Networking!$A12 -> 0 | B12: =Networking!$B12 -> 0 | C12: =Networking!$C12 -> 0 | D12: =Networking!$D12 -> 0 | E12: =Networking!$E12 -> 0
A13: =Networking!$A13 -> 0 | B13: =Networking!$B13 -> 0 | C13: =Networking!$C13 -> 0 | D13: =Networking!$D13 -> 0 | E13: =Networking!$E13 -> 0
A14: =Networking!$A14 -> 0 | B14: =Networking!$B14 -> 0 | C14: =Networking!$C14 -> 0 | D14: =Networking!$D14 -> 0 | E14: =Networking!$E14 -> 0
A15: =Networking!$A15 -> 0 | B15: =Networking!$B15 -> 0 | C15: =Networking!$C15 -> 0 | D15: =Networking!$D15 -> 0 | E15: =Networking!$E15 -> 0
A16: =Networking!$A16 -> 0 | B16: =Networking!$B16 -> 0 | C16: =Networking!$C16 -> 0 | D16: =Networking!$D16 -> 0 | E16: =Networking!$E16 -> 0
A17: =Networking!$A17 -> 0 | B17: =Networking!$B17 -> 0 | C17: =Networking!$C17 -> 0 | D17: =Networking!$D17 -> 0 | E17: =Networking!$E17 -> 0
A18: =Networking!$A18 -> 0 | B18: =Networking!$B18 -> 0 | C18: =Networking!$C18 -> 0 | D18: =Networking!$D18 -> 0 | E18: =Networking!$E18 -> 0
A19: =Networking!$A19 -> 0 | B19: =Networking!$B19 -> 0 | C19: =Networking!$C19 -> 0 | D19: =Networking!$D19 -> 0 | E19: =Networking!$E19 -> 0
A20: =Firewall!A2 -> Firewall | B20: =Firewall!B2 -> XG 550 | C20: =Firewall!C2 -> 1 | D20: =Firewall!D2 -> 35000 | E20: =Firewall!E2 -> 35000
A21: =Firewall!A3 -> Firewall | B21: =Firewall!B3 -> Install/Config | C21: =Firewall!C3 -> 1 | D21: =Firewall!D3 -> 4500 | E21: =Firewall!E3 -> 4500
A22: =Firewall!A4 -> 0 | B22: =Firewall!B4 -> 0 | C22: =Firewall!C4 -> 0 | D22: =Firewall!D4 -> 0 | E22: =Firewall!E4 -> 0
A23: =Firewall!A5 -> 0 | B23: =Firewall!B5 -> 0 | C23: =Firewall!C5 -> 0 | D23: =Firewall!D5 -> 0 | E23: =Firewall!E5 -> 0
A24: =Firewall!A6 -> 0 | B24: =Firewall!B6 -> 0 | C24: =Firewall!C6 -> 0 | D24: =Firewall!D6 -> 0 | E24: =Firewall!E6 -> 0
A25: =Firewall!A7 -> 0 | B25: =Firewall!B7 -> 0 | C25: =Firewall!C7 -> 0 | D25: =Firewall!D7 -> 0 | E25: =Firewall!E7 -> 0
A26: =Firewall!A8 -> 0 | B26: =Firewall!B8 -> 0 | C26: =Firewall!C8 -> 0 | D26: =Firewall!D8 -> 0 | E26: =Firewall!E8 -> 0
A27: =Firewall!A9 -> 0 | B27: =Firewall!B9 -> 0 | C27: =Firewall!C9 -> 0 | D27: =Firewall!D9 -> 0 | E27: =Firewall!E9 -> 0
A28: =Firewall!A10 -> 0 | B28: =Firewall!B10 -> 0 | C28: =Firewall!C10 -> 0 | D28: =Firewall!D10 -> 0 | E28: =Firewall!E10 -> 0
A29: =Firewall!A11 -> 0 | B29: =Firewall!B11 -> 0 | C29: =Firewall!C11 -> 0 | D29: =Firewall!D11 -> 0 | E29: =Firewall!E11 -> 0
A30: =Firewall!A12 -> 0 | B30: =Firewall!B12 -> 0 | C30: =Firewall!C12 -> 0 | D30: =Firewall!D12 -> 0 | E30: =Firewall!E12 -> 0
A31: =Firewall!A13 -> 0 | B31: =Firewall!B13 -> 0 | C31: =Firewall!C13 -> 0 | D31: =Firewall!D13 -> 0 | E31: =Firewall!E13 -> 0
A32: =Firewall!A14 -> 0 | B32: =Firewall!B14 -> 0 | C32: =Firewall!C14 -> 0 | D32: =Firewall!D14 -> 0 | E32: =Firewall!E14 -> 0
A33: =Firewall!A15 -> 0 | B33: =Firewall!B15 -> 0 | C33: =Firewall!C15 -> 0 | D33: =Firewall!D15 -> 0 | E33: =Firewall!E15 -> 0
A34: =Firewall!A16 -> 0 | B34: =Firewall!B16 -> 0 | C34: =Firewall!C16 -> 0 | D34: =Firewall!D16 -> 0 | E34: =Firewall!E16 -> 0
A35: =Firewall!A17 -> 0 | B35: =Firewall!B17 -> 0 | C35: =Firewall!C17 -> 0 | D35: =Firewall!D17 -> 0 | E35: =Firewall!E17 -> 0
A36: =Firewall!A18 -> 0 | B36: =Firewall!B18 -> 0 | C36: =Firewall!C18 -> 0 | D36: =Firewall!D18 -> 0 | E36: =Firewall!E18 -> 0
A37: =Firewall!A19 -> 0 | B37: =Firewall!B19 -> 0 | C37: =Firewall!C19 -> 0 | D37: =Firewall!D19 -> 0 | E37: =Firewall!E19 -> 0
A38: =Wireless!A2 -> Wireless | B38: =Wireless!B2 -> APX 740 | C38: =Wireless!C2 -> 15 | D38: =Wireless!D2 -> 750 | E38: =Wireless!E2 -> 11250
A39: =Wireless!A3 -> Wireless | B39: =Wireless!B3 -> APX 320 Solution | C39: =Wireless!C3 -> 100 | D39: =Wireless!D3 -> 350 | E39: =Wireless!E3 -> 35000
A40: =Wireless!A4 -> Wireless | B40: =Wireless!B4 -> Outdoor AP | C40: =Wireless!C4 -> 10 | D40: =Wireless!D4 -> 750 | E40: =Wireless!E4 -> 7500
A41: =Wireless!A5 -> Wireless | B41: =Wireless!B5 -> Cloudpath | C41: =Wireless!C5 -> 1800 | D41: =Wireless!D5 -> 10 | E41: =Wireless!E5 -> 18000
A42: =Wireless!A6 -> Wireless | B42: =Wireless!B6 -> Install/Config | C42: =Wireless!C6 -> 125 | D42: =Wireless!D6 -> 75 | E42: =Wireless!E6 -> 9375
A43: =Wireless!A7 -> 0 | B43: =Wireless!B7 -> 0 | C43: =Wireless!C7 -> 0 | D43: =Wireless!D7 -> 0 | E43: =Wireless!E7 -> 0
A44: =Wireless!A8 -> 0 | B44: =Wireless!B8 -> 0 | C44: =Wireless!C8 -> 0 | D44: =Wireless!D8 -> 0 | E44: =Wireless!E8 -> 0
A45: =Wireless!A9 -> 0 | B45: =Wireless!B9 -> 0 | C45: =Wireless!C9 -> 0 | D45: =Wireless!D9 -> 0 | E45: =Wireless!E9 -> 0
A46: =Wireless!A10 -> 0 | B46: =Wireless!B10 -> 0 | C46: =Wireless!C10 -> 0 | D46: =Wireless!D10 -> 0 | E46: =Wireless!E10 -> 0
A47: =Wireless!A11 -> 0 | B47: =Wireless!B11 -> 0 | C47: =Wireless!C11 -> 0 | D47: =Wireless!D11 -> 0 | E47: =Wireless!E11 -> 0
A48: =Wireless!A12 -> 0 | B48: =Wireless!B12 -> 0 | C48: =Wireless!C12 -> 0 | D48: =Wireless!D12 -> 0 | E48: =Wireless!E12 -> 0
A49: =Wireless!A13 -> 0 | B49: =Wireless!B13 -> 0 | C49: =Wireless!C13 -> 0 | D49: =Wireless!D13 -> 0 | E49: =Wireless!E13 -> 0
A50: =Wireless!A14 -> 0 | B50: =Wireless!B14 -> 0 | C50: =Wireless!C14 -> 0 | D50: =Wireless!D14 -> 0 | E50: =Wireless!E14 -> 0
A51: =Wireless!A15 -> 0 | B51: =Wireless!B15 -> 0 | C51: =Wireless!C15 -> 0 | D51: =Wireless!D15 -> 0 | E51: =Wireless!E15 -> 0
A52: =Wireless!A16 -> 0 | B52: =Wireless!B16 -> 0 | C52: =Wireless!C16 -> 0 | D52: =Wireless!D16 -> 0 | E52: =Wireless!E16 -> 0
A53: =Wireless!A17 -> 0 | B53: =Wireless!B17 -> 0 | C53: =Wireless!C17 -> 0 | D53: =Wireless!D17 -> 0 | E53: =Wireless!E17 -> 0
A54: =Wireless!A18 -> 0 | B54: =Wireless!B18 -> 0 | C54: =Wireless!C18 -> 0 | D54: =Wireless!D18 -> 0 | E54: =Wireless!E18 -> 0
A55: =Wireless!A19 -> 0 | B55: =Wireless!B19 -> 0 | C55: =Wireless!C19 -> 0 | D55: =Wireless!D19 -> 0 | E55: =Wireless!E19 -> 0
A56: ='Server '!A2 -> Server/Storage/VDI | B56: ='Server '!B2 -> File Servers | C56: ='Server '!C2 -> 1 | D56: ='Server '!D2 -> 5000 | E56: ='Server '!E2 -> 5000
A57: ='Server '!A3 -> Server/Storage/VDI | B57: ='Server '!B3 -> Application Servers | C57: ='Server '!C3 -> 6 | D57: ='Server '!D3 -> 5000 | E57: ='Server '!E3 -> 30000
A58: ='Server '!A4 -> Server/Storage/VDI | B58: ='Server '!B4 -> Backup Servers | C58: ='Server '!C4 -> 2 | D58: ='Server '!D4 -> 5000 | E58: ='Server '!E4 -> 10000
A59: ='Server '!A5 -> Server/Storage/VDI | B59: ='Server '!B5 -> Storage Servers | C59: ='Server '!C5 -> 4 | D59: ='Server '!D5 -> 5000 | E59: ='Server '!E5 -> 20000
A60: ='Server '!A6 -> Server/Storage/VDI | B60: ='Server '!B6 -> Install/Config | C60: ='Server '!C6 -> 13 | D60: ='Server '!D6 -> 750 | E60: ='Server '!E6 -> 9750
A61: ='Server '!A7 -> 0 | B61: ='Server '!B7 -> 0 | C61: ='Server '!C7 -> 0 | D61: ='Server '!D7 -> 0 | E61: ='Server '!E7 -> 0
A62: ='Server '!A8 -> 0 | B62: ='Server '!B8 -> 0 | C62: ='Server '!C8 -> 0 | D62: ='Server '!D8 -> 0 | E62: ='Server '!E8 -> 0
A63: ='Server '!A9 -> 0 | B63: ='Server '!B9 -> 0 | C63: ='Server '!C9 -> 0 | D63: ='Server '!D9 -> 0 | E63: ='Server '!E9 -> 0
A64: ='Server '!A10 -> 0 | B64: ='Server '!B10 -> 0 | C64: ='Server '!C10 -> 0 | D64: ='Server '!D10 -> 0 | E64: ='Server '!E10 -> 0
A65: ='Server '!A11 -> 0 | B65: ='Server '!B11 -> 0 | C65: ='Server '!C11 -> 0 | D65: ='Server '!D11 -> 0 | E65: ='Server '!E11 -> 0
A66: ='Server '!A12 -> 0 | B66: ='Server '!B12 -> 0 | C66: ='Server '!C12 -> 0 | D66: ='Server '!D12 -> 0 | E66: ='Server '!E12 -> 0
A67: ='Server '!A13 -> 0 | B67: ='Server '!B13 -> 0 | C67: ='Server '!C13 -> 0 | D67: ='Server '!D13 -> 0 | E67: ='Server '!E13 -> 0
A68: ='Server '!A14 -> 0 | B68: ='Server '!B14 -> 0 | C68: ='Server '!C14 -> 0 | D68: ='Server '!D14 -> 0 | E68: ='Server '!E14 -> 0
A69: ='Server '!A15 -> 0 | B69: ='Server '!B15 -> 0 | C69: ='Server '!C15 -> 0 | D69: ='Server '!D15 -> 0 | E69: ='Server '!E15 -> 0
A70: ='Server '!A16 -> 0 | B70: ='Server '!B16 -> 0 | C70: ='Server '!C16 -> 0 | D70: ='Server '!D16 -> 0 | E70: ='Server '!E16 -> 0
A71: ='Server '!A17 -> 0 | B71: ='Server '!B17 -> 0 | C71: ='Server '!C17 -> 0 | D71: ='Server '!D17 -> 0 | E71: ='Server '!E17 -> 0
A72: ='Server '!A18 -> 0 | B72: ='Server '!B18 -> 0 | C72: ='Server '!C18 -> 0 | D72: ='Server '!D18 -> 0 | E72: ='Server '!E18 -> 0
A73: ='Server '!A19 -> 0 | B73: ='Server '!B19 -> 0 | C73: ='Server '!C19 -> 0 | D73: ='Server '!D19 -> 0 | E73: ='Server '!E19 -> 0
A74: =CyberSecurity!A2 -> Security | B74: =CyberSecurity!B2 -> Enpoint Protection | C74: =CyberSecurity!C2 -> 1800 | D74: =CyberSecurity!D2 -> 25 | E74: =CyberSecurity!E2 -> 45000
A75: =CyberSecurity!A3 -> Security | B75: =CyberSecurity!B3 -> Server Protection | C75: =CyberSecurity!C3 -> 15 | D75: =CyberSecurity!D3 -> 225 | E75: =CyberSecurity!E3 -> 3375
A76: =CyberSecurity!A4 -> Security | B76: =CyberSecurity!B4 -> Email Protection | C76: =CyberSecurity!C4 -> 1000 | D76: =CyberSecurity!D4 -> 25 | E76: =CyberSecurity!E4 -> 25000
A77: =CyberSecurity!A5 -> Security | B77: =CyberSecurity!B5 -> Phish Threat | C77: =CyberSecurity!C5 -> 200 | D77: =CyberSecurity!D5 -> 50 | E77: =CyberSecurity!E5 -> 10000
A78: =CyberSecurity!A6 -> Security | B78: =CyberSecurity!B6 -> Securly | C78: =CyberSecurity!C6 -> 1100 | D78: =CyberSecurity!D6 -> 5 | E78: =CyberSecurity!E6 -> 5500
A79: =CyberSecurity!A7 -> Security | B79: =CyberSecurity!B7 -> Install/Config | C79: =CyberSecurity!C7 -> 1 | D79: =CyberSecurity!D7 -> 16675 | E79: =CyberSecurity!E7 -> 16675
A80: =CyberSecurity!A8 -> 0 | B80: =CyberSecurity!B8 -> 0 | C80: =CyberSecurity!C8 -> 0 | D80: =CyberSecurity!D8 -> 0 | E80: =CyberSecurity!E8 -> 0
A81: =CyberSecurity!A9 -> 0 | B81: =CyberSecurity!B9 -> 0 | C81: =CyberSecurity!C9 -> 0 | D81: =CyberSecurity!D9 -> 0 | E81: =CyberSecurity!E9 -> 0
A82: =CyberSecurity!A10 -> 0 | B82: =CyberSecurity!B10 -> 0 | C82: =CyberSecurity!C10 -> 0 | D82: =CyberSecurity!D10 -> 0 | E82: =CyberSecurity!E10 -> 0
A83: =CyberSecurity!A11 -> 0 | B83: =CyberSecurity!B11 -> 0 | C83: =CyberSecurity!C11 -> 0 | D83: =CyberSecurity!D11 -> 0 | E83: =CyberSecurity!E11 -> 0
A84: =CyberSecurity!A12 -> 0 | B84: =CyberSecurity!B12 -> 0 | C84: =CyberSecurity!C12 -> 0 | D84: =CyberSecurity!D12 -> 0 | E84: =CyberSecurity!E12 -> 0
A85: =CyberSecurity!A13 -> 0 | B85: =CyberSecurity!B13 -> 0 | C85: =CyberSecurity!C13 -> 0 | D85: =CyberSecurity!D13 -> 0 | E85: =CyberSecurity!E13 -> 0
A86: =CyberSecurity!A14 -> 0 | B86: =CyberSecurity!B14 -> 0 | C86: =CyberSecurity!C14 -> 0 | D86: =CyberSecurity!D14 -> 0 | E86: =CyberSecurity!E14 -> 0
A87: =CyberSecurity!A15 -> 0 | B87: =CyberSecurity!B15 -> 0 | C87: =CyberSecurity!C15 -> 0 | D87: =CyberSecurity!D15 -> 0 | E87: =CyberSecurity!E15 -> 0
A88: =CyberSecurity!A16 -> 0 | B88: =CyberSecurity!B16 -> 0 | C88: =CyberSecurity!C16 -> 0 | D88: =CyberSecurity!D16 -> 0 | E88: =CyberSecurity!E16 -> 0
A89: =CyberSecurity!A17 -> 0 | B89: =CyberSecurity!B17 -> 0 | C89: =CyberSecurity!C17 -> 0 | D89: =CyberSecurity!D17 -> 0 | E89: =CyberSecurity!E17 -> 0
A90: =CyberSecurity!A18 -> 0 | B90: =CyberSecurity!B18 -> 0 | C90: =CyberSecurity!C18 -> 0 | D90: =CyberSecurity!D18 -> 0 | E90: =CyberSecurity!E18 -> 0
A91: =CyberSecurity!A19 -> 0 | B91: =CyberSecurity!B19 -> 0 | C91: =CyberSecurity!C19 -> 0 | D91: =CyberSecurity!D19 -> 0 | E91: =CyberSecurity!E19 -> 0
A92: =Endpoint!A2 -> Endpoints | B92: =Endpoint!B2 -> Chromebooks | C92: =Endpoint!C2 -> 1000 | D92: =Endpoint!D2 -> 250 | E92: =Endpoint!E2 -> 250000
A93: =Endpoint!A3 -> Endpoints | B93: =Endpoint!B3 -> Andriod Tablets | C93: =Endpoint!C3 -> 150 | D93: =Endpoint!D3 -> 500 | E93: =Endpoint!E3 -> 75000
A94: =Endpoint!A4 -> Endpoints | B94: =Endpoint!B4 -> iPad Minis | C94: =Endpoint!C4 -> 0 | D94: =Endpoint!D4 -> 250 | E94: =Endpoint!E4 -> 0
A95: =Endpoint!A5 -> Endpoints | B95: =Endpoint!B5 -> iPad Air *AM | C95: =Endpoint!C5 -> 0 | D95: =Endpoint!D5 -> 500 | E95: =Endpoint!E5 -> 0
A96: =Endpoint!A6 -> Endpoints | B96: =Endpoint!B6 -> Windows Laptops | C96: =Endpoint!C6 -> 0 | D96: =Endpoint!D6 -> 800 | E96: =Endpoint!E6 -> 0
A97: =Endpoint!A7 -> Endpoints | B97: =Endpoint!B7 -> MacBook Pro | C97: =Endpoint!C7 -> 0 | D97: =Endpoint!D7 -> 1300 | E97: =Endpoint!E7 -> 0
A98: =Endpoint!A8 -> Endpoints | B98: =Endpoint!B8 -> Thin Clients | C98: =Endpoint!C8 -> 0 | D98: =Endpoint!D8 -> 450 | E98: =Endpoint!E8 -> 0
A99: =Endpoint!A9 -> Endpoints | B99: =Endpoint!B9 -> VDI | C99: =Endpoint!C9 -> 0 | D99: =Endpoint!D9 -> 750 | E99: =Endpoint!E9 -> 0
A100: =Endpoint!A10 -> Endpoints | B100: =Endpoint!B10 -> iMacs | C100: =Endpoint!C10 -> 0 | D100: =Endpoint!D10 -> 1300 | E100: =Endpoint!E10 -> 0
A101: =Endpoint!A11 -> Endpoints | B101: =Endpoint!B11 -> Windows Desktop | C101: =Endpoint!C11 -> 0 | D101: =Endpoint!D11 -> 1000 | E101: =Endpoint!E11 -> 0
A102: =Endpoint!A12 -> 0 | B102: =Endpoint!B12 -> 0 | C102: =Endpoint!C12 -> 0 | D102: =Endpoint!D12 -> 0 | E102: =Endpoint!E12 -> 0
A103: =Endpoint!A13 -> 0 | B103: =Endpoint!B13 -> 0 | C103: =Endpoint!C13 -> 0 | D103: =Endpoint!D13 -> 0 | E103: =Endpoint!E13 -> 0
A104: =Endpoint!A14 -> 0 | B104: =Endpoint!B14 -> 0 | C104: =Endpoint!C14 -> 0 | D104: =Endpoint!D14 -> 0 | E104: =Endpoint!E14 -> 0
A105: =Endpoint!A15 -> 0 | B105: =Endpoint!B15 -> 0 | C105: =Endpoint!C15 -> 0 | D105: =Endpoint!D15 -> 0 | E105: =Endpoint!E15 -> 0
A106: =Endpoint!A16 -> 0 | B106: =Endpoint!B16 -> 0 | C106: =Endpoint!C16 -> 0 | D106: =Endpoint!D16 -> 0 | E106: =Endpoint!E16 -> 0
A107: =Endpoint!A17 -> 0 | B107: =Endpoint!B17 -> 0 | C107: =Endpoint!C17 -> 0 | D107: =Endpoint!D17 -> 0 | E107: =Endpoint!E17 -> 0
A108: =Endpoint!A18 -> 0 | B108: =Endpoint!B18 -> 0 | C108: =Endpoint!C18 -> 0 | D108: =Endpoint!D18 -> 0 | E108: =Endpoint!E18 -> 0
A109: =Endpoint!A19 -> 0 | B109: =Endpoint!B19 -> 0 | C109: =Endpoint!C19 -> 0 | D109: =Endpoint!D19 -> 0 | E109: =Endpoint!E19 -> 0
A110: ='Classroom Display'!A2 -> Classroom Display | B110: ='Classroom Display'!B2 -> Thing 1 | C110: ='Classroom Display'!C2 -> 100 | D110: ='Classroom Display'!D2 -> 90 | E110: ='Classroom Display'!E2 -> 9000
A111: ='Classroom Display'!A3 -> Classroom Display | B111: ='Classroom Display'!B3 -> Thing 2 | C111: ='Classroom Display'!C3 -> 10 | D111: ='Classroom Display'!D3 -> 1000 | E111: ='Classroom Display'!E3 -> 10000
A112: ='Classroom Display'!A4 -> Classroom Display | B112: ='Classroom Display'!B4 -> Thing 3 | C112: ='Classroom Display'!C4 -> 10 | D112: ='Classroom Display'!D4 -> 1000 | E112: ='Classroom Display'!E4 -> 10000
A113: ='Classroom Display'!A5 -> 0 | B113: ='Classroom Display'!B5 -> 0 | C113: ='Classroom Display'!C5 -> 0 | D113: ='Classroom Display'!D5 -> 0 | E113: ='Classroom Display'!E5 -> 0
A114: ='Classroom Display'!A6 -> 0 | B114: ='Classroom Display'!B6 -> 0 | C114: ='Classroom Display'!C6 -> 0 | D114: ='Classroom Display'!D6 -> 0 | E114: ='Classroom Display'!E6 -> 0
A115: ='Classroom Display'!A7 -> 0 | B115: ='Classroom Display'!B7 -> 0 | C115: ='Classroom Display'!C7 -> 0 | D115: ='Classroom Display'!D7 -> 0 | E115: ='Classroom Display'!E7 -> 0
A116: ='Classroom Display'!A8 -> 0 | B116: ='Classroom Display'!B8 -> 0 | C116: ='Classroom Display'!C8 -> 0 | D116: ='Classroom Display'!D8 -> 0 | E116: ='Classroom Display'!E8 -> 0
A117: ='Classroom Display'!A9 -> 0 | B117: ='Classroom Display'!B9 -> 0 | C117: ='Classroom Display'!C9 -> 0 | D117: ='Classroom Display'!D9 -> 0 | E117: ='Classroom Display'!E9 -> 0
A118: ='Classroom Display'!A10 -> 0 | B118: ='Classroom Display'!B10 -> 0 | C118: ='Classroom Display'!C10 -> 0 | D118: ='Classroom Display'!D10 -> 0 | E118: ='Classroom Display'!E10 -> 0
A119: ='Classroom Display'!A11 -> 0 | B119: ='Classroom Display'!B11 -> 0 | C119: ='Classroom Display'!C11 -> 0 | D119: ='Classroom Display'!D11 -> 0 | E119: ='Classroom Display'!E11 -> 0
A120: ='Classroom Display'!A12 -> 0 | B120: ='Classroom Display'!B12 -> 0 | C120: ='Classroom Display'!C12 -> 0 | D120: ='Classroom Display'!D12 -> 0 | E120: ='Classroom Display'!E12 -> 0
A121: ='Classroom Display'!A13 -> 0 | B121: ='Classroom Display'!B13 -> 0 | C121: ='Classroom Display'!C13 -> 0 | D121: ='Classroom Display'!D13 -> 0 | E121: ='Classroom Display'!E13 -> 0
A122: ='Classroom Display'!A14 -> 0 | B122: ='Classroom Display'!B14 -> 0 | C122: ='Classroom Display'!C14 -> 0 | D122: ='Classroom Display'!D14 -> 0 | E122: ='Classroom Display'!E14 -> 0
A123: ='Classroom Display'!A15 -> 0 | B123: ='Classroom Display'!B15 -> 0 | C123: ='Classroom Display'!C15 -> 0 | D123: ='Classroom Display'!D15 -> 0 | E123: ='Classroom Display'!E15 -> 0
A124: ='Classroom Display'!A16 -> 0 | B124: ='Classroom Display'!B16 -> 0 | C124: ='Classroom Display'!C16 -> 0 | D124: ='Classroom Display'!D16 -> 0 | E124: ='Classroom Display'!E16 -> 0
A125: ='Classroom Display'!A17 -> 0 | B125: ='Classroom Display'!B17 -> 0 | C125: ='Classroom Display'!C17 -> 0 | D125: ='Classroom Display'!D17 -> 0 | E125: ='Classroom Display'!E17 -> 0
A126: ='Classroom Display'!A18 -> 0 | B126: ='Classroom Display'!B18 -> 0 | C126: ='Classroom Display'!C18 -> 0 | D126: ='Classroom Display'!D18 -> 0 | E126: ='Classroom Display'!E18 -> 0
A127: ='Classroom Display'!A19 -> 0 | B127: ='Classroom Display'!B19 -> 0 | C127: ='Classroom Display'!C19 -> 0 | D127: ='Classroom Display'!D19 -> 0 | E127: ='Classroom Display'!E19 -> 0
N128: 0 | O128: 0 | P128: 0 | Q128: 0 | R128: 0
